Cogmind - Beta 13 @@@ ROGUE MODE // 2024.04.11 @ 17:08:16 Player: luckinvolved Result: Destroyed by Y-45 Defender with Beam Rifle Performance ------------- Evolutions (1) 500 Regions Visited (2) 400 Robots Destroyed (25) 125 Value Destroyed (524) 524 Prototype IDs (1) 20 Alien Tech Used (0) 0 Bonus (0) 0 TOTAL SCORE: 1569 Bonus ------- None Cogmind --------- Core Integrity 0/400 Matter 250/300 Energy 76/100 System Corruption 0% Temperature Cool (11) Movement Flying (37) Location -9/Materials Parts ------- > --- POWER (1) -------- (None) > --- PROPULSION (4) --- Improved Flight Unit Improved Flight Unit > --- UTILITY (2) ------ (None) > --- WEAPON (2) ------- (None) > --- INVENTORY (5) ---- Light Ion Engine Wheel Wheel Medium Storage Unit Peak State ------------ > --- POWER ------------ Light Ion Engine > --- PROPULSION ------- Flight Unit Flight Unit Flight Unit Flight Unit > --- UTILITY ---------- Small Storage Unit High-capacity Matter Pod > --- WEAPON ----------- Light Assault Rifle Mini Grenade Launcher > --- INVENTORY -------- Light Ion Engine Wheel Wheel Medium Storage Unit Assault Rifle Grenade Launcher [Rating: 10] Favorites ----------- Power Light Ion Engine Engine Light Ion Engine Propulsion Flight Unit Treads Light Treads Wheel Wheel Flight Unit Flight Unit Utility Small Storage Unit Storage Small Storage Unit Weapon Assault Rifle Ballistic Gun Assault Rifle Launcher Grenade Launcher Build | -11 -10 -9 ------- Run | Yrd Mat Mat Slots Evolved 2 | . . 2 Power . | . . . Propulsion 2 | . . 2 Utility . | . . . Weapon . | . . . Parts Attached 25 | 8 2 15 Power 2 | 1 . 1 Engine 2 | 1 . 1 Core . | . . . Reactor . | . . . Propulsion 11 | 4 . 7 Treads 2 | 2 . . Leg . | . . . Wheel 2 | 2 . . Hover . | . . . Flight 7 | . . 7 Utility 2 | 1 1 . Device . | . . . Storage 2 | 1 1 . Processor . | . . . Hackware . | . . . Protection . | . . . Artifact . | . . . Weapon 10 | 2 1 7 Energy Gun . | . . . Energy Cannon . | . . . Ballistic Gun 5 | 2 . 3 Ballistic Cannon . | . . . Launcher 5 | . 1 4 Special Weapon . | . . . Impact Weapon . | . . . Slashing Weapon . | . . . Piercing Weapon . | . . . Special Melee Weapon . | . . . Unidentified Prototypes 1 | . . 1 Parts Lost 13 | . . 13 Power 2 | . . 2 Propulsion 5 | . . 5 Utility 2 | . . 2 Weapon 4 | . . 4 Highest Loss Streak 10 | . . 10 To Critical Strikes . | . . . Average Slot Usage (%) 87 | . 92 82 Engine 11 | . 14 9 Wheel 14 | . 28 . Flight 15 | . . 32 Storage 20 | . 21 20 Ballistic Gun 15 | . 15 14 Launcher 9 | . 12 5 Naked Turns 2 | . . 2 Heaviest Build 17 | 11 17 16 Greatest Support 40 | 40 20 16 Greatest Overweight (x) 3 | 1 . 3 Average Overweight (x) . | . . . Largest Inventory Capacity 8 | 8 8 8 Average Capacity 7 | 7 8 7 Most Carried 8 | 4 8 8 Average Carried 5 | 1 6 5 Final Capacity 8 | 8 8 5 Final Carried 8 | 4 8 4 Class Distribution -------------------- 85% | Mutant 14% | Scavenger-Sprinter Dominant Class ---------------- Mutant | -10/Materials Mutant | -9/Materials Resources | -11 -10 -9 ----------- Run | Yrd Mat Mat Matter Collected 682 | 170 282 230 Remotely . | . . . Salvage Created 545 | . 105 440 Parts 41 | . 20 21 Haulers Intercepted 1 | . . 1 Recyclers Shooed . | . . . Parts Field Recycled . | . . . Retrieved Matter . | . . . Parts Self-Destructed . | . . . Prevented . | . . . Kills | -11 -10 -9 ------- Run | Yrd Mat Mat Combat Hostiles Destroyed 18 | . 9 9 Guns 7 | . 2 5 AOE 11 | . 7 4 Classes Destroyed 9 | . 4 5 Worker 1 | . 1 . Builder 1 | . 1 . Hauler 1 | . . 1 Recycler 1 | . . 1 Operator 1 | . . 1 Watcher 2 | . 2 . Swarmer 9 | . 9 . Grunt 6 | . . 6 Sentry 3 | . . 3 Best Kill Streak 9 | . 9 6 Combat Bots Only 6 | . 6 4 Max Kills in Single Turn 3 | . 3 2 Gunslinging . | . . . Exploded 2 | . 2 1 Melee . | . . . Uniques/NPCs Destroyed . | . . . Combat | -11 -10 -9 -------- Run | Yrd Mat Mat Hostile Shots Fired 88 | . 24 64 Missed 27 | . 9 18 Damage Taken 1152 | . 112 1040 Core 425 | . 23 402 Absorbed by Shields . | . . . Core Remaining (%) 95 | 100 90 . Volleys Fired 60 | . 18 42 Largest 2 | . 2 2 Hottest 60 | . 50 60 Shots Fired 89 | . 22 67 Gun 73 | . 18 55 Cannon . | . . . Launcher 16 | . 4 12 Special . | . . . Kinetic 73 | . 18 55 Thermal . | . . . Explosive 16 | . 4 12 Electromagnetic . | . . . Robot Hit Streak 14 | . 3 14 Robot Miss Streak 4 | . 4 4 Penetration Max . | . . . Secondary Targets . | . . . Shots Hit Robots 59 | . 8 51 Core Hits 46 | . 14 32 Critical Kills . | . . . Critical Parts Destroyed . | . . . Critical Strikes . | . . . Melee Attacks . | . . . Impact . | . . . Slashing . | . . . Piercing . | . . . Sneak Attacks . | . . . Combat Hostiles . | . . . Follow-up Attacks . | . . . Damage Inflicted 1715 | . 643 1072 Guns 475 | . 79 396 Cannons . | . . . Explosions 1240 | . 564 676 Melee . | . . . Ramming . | . . . Kinetic 475 | . 79 396 Thermal . | . . . Explosive 1240 | . 564 676 Electromagnetic . | . . . Impact . | . . . Slashing . | . . . Piercing . | . . . Highest Corruption . | . . . Average Corruption . | . . . Corruption Purged . | . . . Corruption Blocked . | . . . Overload Shots . | . . . Overflow Damage 80 | . 46 34 Projectiles . | . . . Explosions 80 | . 46 34 Melee . | . . . Knockbacks . | . . . Impact . | . . . Kinetic . | . . . Secondary . | . . . Self-Inflicted Damage 375 | . 4 371 Shots 12 | . 1 11 Rammed . | . . . Targets Rammed . | . . . Kicked . | . . . Crushed . | . . . Highest Temperature 19 | . . 19 Average Temperature 6 | . . 6 Received Heat Transfer 279 | . . 279 Siege Activations . | . . . Robots Corrupted . | . . . Combat Hostiles . | . . . Parts Fried . | . . . Impact Corruptions . | . . . Robots Melted . | . . . Combat Hostiles . | . . . Parts Melted . | . . . Heat Transferred . | . . . Parts Sabotaged . | . . . Parts Stolen . | . . . Parts Stripped . | . . . Power Chain Reactions . | . . . Alert | -11 -10 -9 ------- Run | Yrd Mat Mat Peak Influence 353 | . 298 353 Initial 125 | . . 125 Average 170 | . 200 213 Maximum Alert Level 1 | . 1 1 Low Security (%) 52 | 100 43 40 Level 1 47 | . 56 59 Level 2 . | . . . Level 3 . | . . . Level 4 . | . . . Level 5 . | . . . High Security . | . . . Max Security . | . . . Squads Dispatched 1 | . . 1 Investigation . | . . . Extermination . | . . . Reinforcement 1 | . . 1 Assault . | . . . Garrison . | . . . Intercept . | . . . Searches Triggered . | . . . Construction Impeded . | . . . Haulers Reinforced . | . . . Active Scanning Responses . | . . . Cargo Convoy Interrupts . | . . . Stealth | -11 -10 -9 --------- Run | Yrd Mat Mat Distress Signals 3 | . 3 . Communications Jammed . | . . . Distress Signals . | . . . Times Spotted 23 | . 12 11 Peak Tracking Total 6 | . 6 4 Tactical Retreats . | . . . Traps | -11 -10 -9 ------- Run | Yrd Mat Mat Traps Triggered . | . . . Indirectly . | . . . Trap Hack Attempts . | . . . Triggered . | . . . Disarmed . | . . . Reprogrammed . | . . . Reused . | . . . Traps Extracted . | . . . Installed . | . . . Triggered . | . . . Machines | -11 -10 -9 ---------- Run | Yrd Mat Mat Machines Disabled 2 | . 1 1 Max in Single Turn 1 | . 1 1 Machines Repaired . | . . . Machines Dismantled . | . . . Machines Sabotaged . | . . . Overloaded Fab Kills . | . . . Hacking | -11 -10 -9 --------- Run | Yrd Mat Mat Machines Accessed 4 | . 3 1 Terminals 4 | . 3 1 Fabricators . | . . . Repair Stations . | . . . Recycling Units . | . . . Scanalyzers . | . . . Garrison Access . | . . . Total Hacks 7 | . 5 2 Successful . | . . . Failed 7 | . 5 2 Catastrophic 4 | . 3 1 Database Lockouts . | . . . Manual 7 | . 5 2 Terminals 7 | . 5 2 Fabricators . | . . . Repair Stations . | . . . Recycling Units . | . . . Scanalyzers . | . . . Garrison Access . | . . . Terminal Hacks . | . . . Fabricator Hacks . | . . . Repair Station Hacks . | . . . Recycling Unit Hacks . | . . . Scanalyzer . | . . . Garrison Access Hacks . | . . . Unauthorized Hacks . | . . . Terminals . | . . . Fabricators . | . . . Repair Stations . | . . . Recycling Units . | . . . Scanalyzers . | . . . Garrison Access . | . . . Data Cores Recovered . | . . . Used . | . . . Hacking Detections 4 | . 3 1 Full Trace Events 1 | . 1 . Feedback Events . | . . . Feedback Blocked . | . . . Robot Schematics Acquired . | . . . Robots Built . | . . . Authchips . | . . . Time . | . . . Total Robot Build Rating . | . . . Part Schematics Acquired . | . . . Parts Built . | . . . Authchips . | . . . Time . | . . . Total Part Build Rating . | . . . Parts Repaired . | . . . Time . | . . . Parts Recycled . | . . . Recycled Matter . | . . . Retrieved Matter . | . . . Retrieved Components . | . . . Parts Scanalyzed . | . . . Part Schematics Acquired . | . . . Parts Damaged . | . . . Bothacking | -11 -10 -9 ------------ Run | Yrd Mat Mat Used RIF Installer . | . . . Robots Hacked . | . . . Non-combat . | . . . Combat . | . . . Robot Hacks Applied . | . . . Relay Couplers Released . | . . . Fabnet Peak Effective % . | . . . Robots Rewired . | . . . Allies Hacked . | . . . Hacks Repelled . | . . . Allies | -11 -10 -9 -------- Run | Yrd Mat Mat Total Allies . | . . . Largest Group . | . . . Highest-Rated Group . | . . . Highest-Rated Ally . | . . . Total Orders . | . . . Ally Attacks . | . . . Total Damage . | . . . Kills . | . . . Allies Corrupted . | . . . Allies Melted . | . . . Intel | -11 -10 -9 ------- Run | Yrd Mat Mat Robot Analysis Total . | . . . Derelict Logs Recovered . | . . . Drone Launches . | . . . Drone Recoveries . | . . . Exploration | -11 -10 -9 ------------- Run | Yrd Mat Mat Turns Passed 719 | 126 313 280 Spaces Moved 644 | 82 321 241 Core 11 | 6 . 5 Treads 59 | 59 . . Legs . | . . . Wheels 338 | 17 321 . Hover . | . . . Flight 236 | . . 236 Fastest Speed 31 | 50 80 31 Average Speed 80 | 135 80 61 Slowest Speed 200 | 160 80 200 Overloaded Moves . | . . . Propulsion Burnouts . | . . . Robots Hopped . | . . . Cave-ins Triggered 1 | . . 1 Exploration Rate (%) 28 | 4 58 24 Regions Visited 2 Branch Regions . Pre-discovered Areas . | . . . Known Exits Taken . | . . . Unknown Exits Taken 2 | 1 1 . Scrap Searched . | . . . Spaces Dug . | . . . Terrain Destroyed 106 | . 16 90 Melee . | . . . Projectile . | . . . AOE 106 | . 16 90 Terrain Rammed . | . . . Walls Destroyed . | . . . Machines Disabled . | . . . Actions | -11 -10 -9 --------- Run | Yrd Mat Mat Total 760 | 93 357 310 Wait 7 | . . 7 Move 642 | 81 320 241 Hop . | . . . Pick Up 15 | 2 10 3 Fast Attach 11 | 8 1 2 Attach 9 | . 1 8 Detach 4 | 2 1 1 Swap 5 | . . 5 Drop 7 | . 6 1 Fire 60 | . 18 42 Melee . | . . . Ram . | . . . Kick . | . . . Crush . | . . . Escape Stasis . | . . . Rewire . | . . . Trap . | . . . Miscellaneous . | . . . Route ------- -11/Scrapyard -10/Materials (discovered 3 exits: *Mat / [*Min x2]) -9/Materials History --------- Turn | Location | Event 2 | -11/Scrapyard | Met Revision 17 3 | -11/Scrapyard | Discovered new exit (range 16) 127 | -11/Scrapyard | Entered Materials 173 | -10/Materials | Discovered new exit (range 15) 328 | -10/Materials | Build established: Mutant 370 | -10/Materials | Discovered new exit (range 13) 409 | -10/Materials | Discovered new exit (range 16) 440 | -10/Materials | Entered another Materials area 440 | -9/Materials | Evolved 2 slots: Propulsion x2 702 | -9/Materials | Core integrity fell below 50% 709 | -9/Materials | Crushed by falling debris 712 | -9/Materials | Core integrity fell below 20% 720 | -9/Materials | Destroyed by Y-45 Defender with Beam Rifle Last Messages --------------- 00708_ U-05 Engineer lays Concrete. 00708_ Scanalyzer disabled. 00709_ The unstable cave ceiling collapses. 00709_ Crushed by falling debris. 00709_ U-05 Engineer lays Concrete. 00710_ U-05 Engineer builds a Wall. 00712_ Y-45 Defender destroyed. 00712_ Sml. Storage Unit destroyed. 00712_ Destroyed Sml. Storage Unit. 00714_ The unstable cave ceiling collapses. 00714_ Mni. Grenade Launcher destroyed. 00715_ U-05 Engineer lays Concrete. 00716_ U-05 Engineer builds a Wall. 00716_ K-01 Serf cleans the Electrolysis Chamber. 00716_ Acquired Prototype Flight Unit. 00716_ Identified Imp. Flight Unit. 00717_ U-05 Engineer builds a Wall. 00718_ The unstable cave ceiling collapses. 00718_ 14 Matter crushed. 00718_ Acquired Imp. Flight Unit. Map ----- +----------------------------------------------------+ | + """ + #??????????????????????? | | ######### # #########??????????????????????? | | ????????# # ! #??????????????????????????????? | | ??????### ########??????????????????????????????? | | ??????# #???????????######??????????????????? | | ??????# T ############# #??????????????????? | | ??????# "" + #??????????????????? | | ??????# ##### # #??????????????????? | | ??????# ##### # #??????????????????? | | ??????###+### + #??????????????????? | | ??????# # +#### #??????????????????? | | ??????# ### ## #??????????????????? | | ??????# # ## #??????????????????? | | ??????# #=# # ## #??????????????????? | | ??????# ] # # #######??????????????????? | | ??????# # # #????????????????????????? | | ??????######### # # #????????????????????????? | | ?????????????#### # #????????????????????????? | | ????###########?# # #????????????????????????? | | ????# ### # #????????????????????????? | | ????# """ ### ####+#????????????????????????? | | ????# """ !%# # #########????????????????? | | ????# """ # # # #????????????????? | | + """ # = #????????????????? | | "" # R" ! = %*""" #????????????????? | | "???# """ #= @ R" #????????????????? | | ????# !Y # """ #????????????????? | | ????########/# # #????????????????? | | ???????????# #### ###### #????????????????? | | ??????????? r " ?????#????????????????? | | ???????????# ##### ""S ?????????????????????? | | ???????????# ???# "" ???????????????????? | | ???????????# ???# """ +??????????????????? | | ???????????+ ???+ """ #??????????????????? | | ???????????# ???# """ #??????????????????? | | ???????????? ???# ??? #??????????????????? | | ????????????# ???#######???? #??????????????????? | | ????????????? ??????????????????????????????????? | | ????????????? ??????????????????????????????????? | | ????????????? ??????????????????????????????????? | | ????????????? ??????????????????????????????????? | | ????????????? ??????????????????????????????????? | | ????????????????????????????????????????????????? | | ????????????????????????????????????????????????? | | ????????????????????????????????????????????????? | | ????????????????????????????????????????????????? | | ????????????????????????????????????????????????? | | ????????????????????????????????????????????????? | | ????????????????????????????????????????????????? | | ????????????????????????????????????????????????? | +----------------------------------------------------+ Best States ------------- Heat Dissipation 28 Energy Generation 10 Energy Capacity 125 Matter Stores 379 Matter Capacity 500 Sight Range 16 Terrain Scan Density 10 Evasion (%) 63 Recoil Reduction 2 Item Schematics ----------------- None Robot Schematics ------------------ None Fabricated ------------ Nothing Alien Tech Used ----------------- None Achievements -------------- None Challenges ------------ None Game ------ Seed ResetMassBroadsword Manual? 0 Play Time 00:14:27 Cumulative 18.1 hours Start 2024.04.11 @ 16:55:35 End 2024.04.11 @ 17:08:16 Sessions 1 Manual Loads 0 Difficulty Rogue Special Mode None Game No. 41 Rogue 36 Adventurer 5 Explorer 0 Win Type - Total 0 Types 0/0/0/0/0/0/0/0/0 Lore% 6 Gallery% 27 Achievement% 19 Wizard Run 0 Options --------- Layout 0 ASCII 0 Keyboard 0 Movement Mouse Keybinds 0 Fullscreen 2 Font 24/Smallcaps Map View 38x25 Zoom Use 73% Tactical HUD 1 Map Filters NONE Filters NONE Steam 1 RUN: 1d4cbabb-67e8-418f-a183-ed2cbae72f9a